[Event "*** Titled Tuesday 3|2 Blitz"]
[Site "Chess.com"]
[Date "2017.03.07"]
[Round "10"]
[White "DryCounty"]
[Black "macko06"]
[Result "1/2-1/2"]
[WhiteElo "2504"]
[BlackElo "2359"]
[TimeControl "180+2"]
[EndTime "15:29:00 PST"]
[Termination "Game drawn by 50-move rule"]

1. e4 {[%clk 0:03:02]} 1... e5 {[%clk 0:03:00.5]} 2. Nf3 {[%clk 0:03:02.6]} 2...
Nc6 {[%clk 0:03:02.2]} 3. d4 {[%clk 0:03:04]} 3... exd4 {[%clk 0:03:03.2]} 4.
Bc4 {[%clk 0:03:05.6]} 4... Nf6 {[%clk 0:02:57.7]} 5. e5 {[%clk 0:03:05.9]} 5...
d5 {[%clk 0:02:51.4]} 6. Bb5 {[%clk 0:03:06.5]} 6... Ne4 {[%clk 0:02:51.2]} 7.
Nxd4 {[%clk 0:03:07.8]} 7... Bd7 {[%clk 0:02:49.3]} 8. Bxc6 {[%clk 0:03:09.1]}
8... bxc6 {[%clk 0:02:49.8]} 9. O-O {[%clk 0:03:10.6]} 9... Be7 {[%clk
0:02:43.1]} 10. f3 {[%clk 0:03:08.9]} 10... Nc5 {[%clk 0:02:42.2]} 11. f4 {[%clk
0:03:09.2]} 11... O-O {[%clk 0:02:39]} 12. f5 {[%clk 0:03:05.3]} 12... Ne4
{[%clk 0:02:31.1]} 13. Nd2 {[%clk 0:02:56.5]} 13... c5 {[%clk 0:02:30.5]} 14.
Nxe4 {[%clk 0:02:55.3]} 14... cxd4 {[%clk 0:02:29.2]} 15. Ng3 {[%clk 0:02:48.9]}
15... c5 {[%clk 0:02:28.3]} 16. f6 {[%clk 0:02:48]} 16... gxf6 {[%clk
0:02:27.9]} 17. Bh6 {[%clk 0:02:47.9]} 17... fxe5 {[%clk 0:02:27.7]} 18. Nf5
{[%clk 0:02:36.6]} 18... Bxf5 {[%clk 0:02:15.2]} 19. Rxf5 {[%clk 0:02:36.6]}
19... Qd6 {[%clk 0:02:12.9]} 20. Qg4+ {[%clk 0:02:18.5]} 20... Qg6 {[%clk
0:02:13.3]} 21. Qxg6+ {[%clk 0:02:18.6]} 21... hxg6 {[%clk 0:01:41.6]} 22. Bxf8
{[%clk 0:02:15.6]} 22... Bxf8 {[%clk 0:01:41.7]} 23. Rxe5 {[%clk 0:02:14.8]}
23... Rd8 {[%clk 0:01:43.3]} 24. Rae1 {[%clk 0:02:14.1]} 24... Kg7 {[%clk
0:01:32.8]} 25. Re8 {[%clk 0:02:08.4]} 25... Rd6 {[%clk 0:01:30.4]} 26. Rc8
{[%clk 0:02:09.1]} 26... Ra6 {[%clk 0:01:18]} 27. a3 {[%clk 0:02:00.8]} 27... c4
{[%clk 0:01:19.4]} 28. Re5 {[%clk 0:01:53]} 28... c3 {[%clk 0:00:30.4]} 29. bxc3
{[%clk 0:01:50.3]} 29... dxc3 {[%clk 0:00:31.7]} 30. Rxc3 {[%clk 0:01:46.8]}
30... d4 {[%clk 0:00:31.6]} 31. Rd3 {[%clk 0:01:42.9]} 31... Bxa3 {[%clk
0:00:31.2]} 32. Rb5 {[%clk 0:01:25.2]} 32... Ra4 {[%clk 0:00:23]} 33. Kf2 {[%clk
0:01:17.1]} 33... Bc1 {[%clk 0:00:21.9]} 34. Kf3 {[%clk 0:01:12.7]} 34... Rc4
{[%clk 0:00:22.5]} 35. Ra5 {[%clk 0:01:08]} 35... Be3 {[%clk 0:00:21.1]} 36. Ra2
{[%clk 0:01:01.9]} 36... a5 {[%clk 0:00:16]} 37. Ke4 {[%clk 0:00:59.8]} 37... a4
{[%clk 0:00:16.6]} 38. Kd5 {[%clk 0:01:00.8]} 38... Rc8 {[%clk 0:00:16.7]} 39.
Rda3 {[%clk 0:00:58.5]} 39... Rh8 {[%clk 0:00:08.8]} 40. h3 {[%clk 0:00:58.6]}
40... Rh5+ {[%clk 0:00:09.9]} 41. Ke4 {[%clk 0:00:54.5]} 41... Rg5 {[%clk
0:00:10.4]} 42. g4 {[%clk 0:00:53.2]} 42... f5+ {[%clk 0:00:10.5]} 43. Kf3
{[%clk 0:00:54.2]} 43... fxg4+ {[%clk 0:00:09]} 44. hxg4 {[%clk 0:00:55]} 44...
Rc5 {[%clk 0:00:09.6]} 45. Rxa4 {[%clk 0:00:55.3]} 45... Kh6 {[%clk 0:00:10.7]}
46. Ra5 {[%clk 0:00:53]} 46... Rc8 {[%clk 0:00:11.5]} 47. Ra1 {[%clk 0:00:48.3]}
47... Rf8+ {[%clk 0:00:12.4]} 48. Ke2 {[%clk 0:00:45.2]} 48... Rf2+ {[%clk
0:00:12.6]} 49. Kd3 {[%clk 0:00:45.8]} 49... Rd2+ {[%clk 0:00:13.8]} 50. Ke4
{[%clk 0:00:46.8]} 50... Rxc2 {[%clk 0:00:14.3]} 51. Rh1+ {[%clk 0:00:44.5]}
51... Kg7 {[%clk 0:00:15.3]} 52. Ra7+ {[%clk 0:00:45]} 52... Kf6 {[%clk
0:00:16.5]} 53. Rf1+ {[%clk 0:00:29]} 53... Kg5 {[%clk 0:00:17.5]} 54. Kf3
{[%clk 0:00:30.1]} 54... Rc5 {[%clk 0:00:14.6]} 55. Rd7 {[%clk 0:00:28.6]} 55...
Re5 {[%clk 0:00:15.2]} 56. Rb1 {[%clk 0:00:26.6]} 56... Ra5 {[%clk 0:00:13.7]}
57. Rdb7 {[%clk 0:00:22.7]} 57... Kh6 {[%clk 0:00:09.7]} 58. Ke4 {[%clk
0:00:21.8]} 58... Ra8 {[%clk 0:00:09.1]} 59. R1b5 {[%clk 0:00:20.5]} 59... Re8+
{[%clk 0:00:09.9]} 60. Kd3 {[%clk 0:00:21.7]} 60... Rf8 {[%clk 0:00:11]} 61. Rd7
{[%clk 0:00:20.5]} 61... Rf4 {[%clk 0:00:11.7]} 62. g5+ {[%clk 0:00:20.6]} 62...
Kh5 {[%clk 0:00:13.2]} 63. Rh7+ {[%clk 0:00:21]} 63... Kg4 {[%clk 0:00:14.6]}
64. Rh6 {[%clk 0:00:21.7]} 64... Rf5 {[%clk 0:00:14.7]} 65. Rb6 {[%clk 0:00:20]}
65... Rxg5 {[%clk 0:00:13.2]} 66. Rhxg6 {[%clk 0:00:21.1]} 66... Rxg6 {[%clk
0:00:14.7]} 67. Rxg6+ {[%clk 0:00:21.7]} 67... Kf5 {[%clk 0:00:16.2]} 68. Rg8
{[%clk 0:00:22.7]} 68... Kf4 {[%clk 0:00:17.6]} 69. Rf8+ {[%clk 0:00:23.3]}
69... Kg3 {[%clk 0:00:19]} 70. Ke4 {[%clk 0:00:24.6]} 70... Kg2 {[%clk
0:00:20.3]} 71. Rf5 {[%clk 0:00:24.5]} 71... Kh1 {[%clk 0:00:21.6]} 72. Kf3
{[%clk 0:00:23.4]} 72... Bg1 {[%clk 0:00:22]} 73. Rh5+ {[%clk 0:00:23.9]} 73...
Bh2 {[%clk 0:00:23.3]} 74. Kf2 {[%clk 0:00:18.9]} 74... d3 {[%clk 0:00:24.2]}
75. Ra5 {[%clk 0:00:15.8]} 75... Bg1+ {[%clk 0:00:24.2]} 76. Kg3 {[%clk
0:00:16.3]} 76... Bh2+ {[%clk 0:00:21.8]} 77. Kh3 {[%clk 0:00:17.4]} 77... d2
{[%clk 0:00:14.6]} 78. Ra1+ {[%clk 0:00:16.6]} 78... Bg1 {[%clk 0:00:15.6]} 79.
Kg4 {[%clk 0:00:12.6]} 79... d1=Q+ {[%clk 0:00:15.8]} 80. Rxd1 {[%clk
0:00:13.1]} 80... Kg2 {[%clk 0:00:17.4]} 81. Rd2+ {[%clk 0:00:14.5]} 81... Kh1
{[%clk 0:00:18.5]} 82. Kh3 {[%clk 0:00:15.8]} 82... Be3 {[%clk 0:00:19]} 83. Rd3
{[%clk 0:00:16.9]} 83... Bb6 {[%clk 0:00:18.6]} 84. Rb3 {[%clk 0:00:17.7]} 84...
Bc5 {[%clk 0:00:19.1]} 85. Kg3 {[%clk 0:00:18.3]} 85... Ba7 {[%clk 0:00:18.8]}
86. Rb2 {[%clk 0:00:16.8]} 86... Bc5 {[%clk 0:00:17.2]} 87. Rd2 {[%clk
0:00:16.9]} 87... Bb6 {[%clk 0:00:16.8]} 88. Rd7 {[%clk 0:00:17.2]} 88... Bc5
{[%clk 0:00:13.5]} 89. Rd8 {[%clk 0:00:15]} 89... Bb6 {[%clk 0:00:13.5]} 90. Rd5
{[%clk 0:00:14.5]} 90... Ba7 {[%clk 0:00:12.2]} 91. Rh5+ {[%clk 0:00:13.5]}
91... Kg1 {[%clk 0:00:13]} 92. Rb5 {[%clk 0:00:15]} 92... Kh1 {[%clk 0:00:12.7]}
93. Ra5 {[%clk 0:00:14.9]} 93... Bb8+ {[%clk 0:00:13.3]} 94. Kh3 {[%clk
0:00:16.1]} 94... Bh2 {[%clk 0:00:14.2]} 95. Ra2 {[%clk 0:00:17]} 95... Bg1
{[%clk 0:00:14.3]} 96. Re2 {[%clk 0:00:18.4]} 96... Bb6 {[%clk 0:00:14.4]} 97.
Kg3 {[%clk 0:00:19.1]} 97... Bc7+ {[%clk 0:00:15.4]} 98. Kf2 {[%clk 0:00:20.3]}
98... Bb6+ {[%clk 0:00:16]} 99. Kf1 {[%clk 0:00:20.9]} 99... Bc7 {[%clk
0:00:16.6]} 100. Re4 {[%clk 0:00:21.9]} 100... Bb8 {[%clk 0:00:17.2]} 101. Re7
{[%clk 0:00:20.4]} 101... Bd6 {[%clk 0:00:17.7]} 102. Rg7 {[%clk 0:00:20.3]}
102... Be5 {[%clk 0:00:17.7]} 103. Rg6 {[%clk 0:00:21.2]} 103... Bb8 {[%clk
0:00:18]} 104. Kf2 {[%clk 0:00:22.3]} 104... Bc7 {[%clk 0:00:17.4]} 105. Kf3
{[%clk 0:00:23]} 105... Bb8 {[%clk 0:00:17.3]} 106. Rh6+ {[%clk 0:00:24.1]}
106... Kg1 {[%clk 0:00:17]} 107. Rb6 {[%clk 0:00:24.1]} 107... Bc7 {[%clk
0:00:17.3]} 108. Rb1+ {[%clk 0:00:24.8]} 108... Kh2 {[%clk 0:00:17.5]} 109. Kf2
{[%clk 0:00:26.1]} 109... Bg3+ {[%clk 0:00:17.5]} 110. Kf3 {[%clk 0:00:26.1]}
110... Bc7 {[%clk 0:00:18.6]} 111. Rc1 {[%clk 0:00:27.3]} 111... Bb6 {[%clk
0:00:18.4]} 112. Rc2+ {[%clk 0:00:27.6]} 112... Kh1 {[%clk 0:00:19]} 113. Kg3
{[%clk 0:00:26.8]} 113... Ba7 {[%clk 0:00:19]} 114. Rb2 {[%clk 0:00:25.5]}
114... Bc5 {[%clk 0:00:18.7]} 115. Rb1+ {[%clk 0:00:24.6]} 115... Bg1 {[%clk
0:00:19.3]} 116. Kf3 {[%clk 0:00:25.8]} 116... Kh2 {[%clk 0:00:17.7]} 117. Rb2+
{[%clk 0:00:27.1]} 117... Kh1 {[%clk 0:00:18.8]} 118. Rb1 {[%clk 0:00:28.1]}
118... Kh2 {[%clk 0:00:20.1]} 119. Rb5 {[%clk 0:00:29.5]} 119... Kh1 {[%clk
0:00:17]} 120. Kg3 {[%clk 0:00:30.7]} 120... Bh2+ {[%clk 0:00:17.5]} 121. Kf2
{[%clk 0:00:31.8]} 121... Bg1+ {[%clk 0:00:18.3]} 122. Kf1 {[%clk 0:00:33.1]}
122... Bh2 {[%clk 0:00:19.2]} 123. Rb3 {[%clk 0:00:33.2]} 123... Bd6 {[%clk
0:00:19.1]} 124. Rf3 {[%clk 0:00:33.8]} 124... Bc7 {[%clk 0:00:19.6]} 125. Rf5
{[%clk 0:00:34.7]} 125... Bd6 {[%clk 0:00:20]} 126. Rd5 {[%clk 0:00:35.5]}
126... Bc7 {[%clk 0:00:20.8]} 127. Kf2 {[%clk 0:00:36.5]} 127... Bb6+ {[%clk
0:00:20.4]} 128. Kg3 {[%clk 0:00:37.7]} 128... Bc7+ {[%clk 0:00:21.3]} 129. Kh3
{[%clk 0:00:39]} 129... Bb6 {[%clk 0:00:22.4]} 130. Rg5 {[%clk 0:00:36.5]}
130... Ba7 {[%clk 0:00:21.8]} 131. Rf5 {[%clk 0:00:29.5]} 131... Bb6 {[%clk
0:00:21.9]} 132. Rb5 {[%clk 0:00:30.2]} 132... Ba7 {[%clk 0:00:22.5]} 133. Rb1+
{[%clk 0:00:30.9]} 133... Bg1 {[%clk 0:00:22.9]} 134. Rb3 {[%clk 0:00:32.3]}
1/2-1/2

[Event "*** Titled Tuesday 3|2 Blitz"]
[Site "Chess.com"]
[Date "2017.03.07"]
[Round "11"]
[White "Rock700chess"]
[Black "saraswathii"]
[Result "0-1"]
[WhiteElo "2227"]
[BlackElo "2165"]
[TimeControl "180+2"]
[EndTime "15:31:03 PST"]
[Termination "saraswathii won by resignation"]

1. e4 {[%clk 0:03:02]} 1... c5 {[%clk 0:03:00]} 2. d4 {[%clk 0:03:02.3]} 2...
cxd4 {[%clk 0:03:00.5]} 3. c3 {[%clk 0:03:03.8]} 3... dxc3 {[%clk 0:03:01.1]} 4.
Nxc3 {[%clk 0:03:05.7]} 4... Nc6 {[%clk 0:02:59.2]} 5. Nf3 {[%clk 0:03:06.8]}
5... e6 {[%clk 0:02:56.8]} 6. Bc4 {[%clk 0:03:07.6]} 6... Nf6 {[%clk 0:02:56.3]}
7. O-O {[%clk 0:03:07.1]} 7... Bc5 {[%clk 0:02:56.2]} 8. Qe2 {[%clk 0:03:07]}
8... Qc7 {[%clk 0:02:53.3]} 9. Rd1 {[%clk 0:03:00.8]} 9... Ng4 {[%clk
0:02:51.2]} 10. Nb5 {[%clk 0:02:44.6]} 10... Qb8 {[%clk 0:02:44.1]} 11. h3
{[%clk 0:02:42.2]} 11... Nxf2 {[%clk 0:02:41.8]} 0-1

[Event "*** Titled Tuesday 3|2 Blitz"]
[Site "Chess.com"]
[Date "2017.03.07"]
[Round "11"]
[White "HouseOfDurin"]
[Black "Shivagami"]
[Result "1-0"]
[WhiteElo "1859"]
[BlackElo "1938"]
[TimeControl "180+2"]
[EndTime "15:34:02 PST"]
[Termination "HouseOfDurin won by checkmate"]

1. d4 {[%clk 0:03:02]} 1... Nf6 {[%clk 0:02:59.9]} 2. Bg5 {[%clk 0:03:02.6]}
2... Ne4 {[%clk 0:02:59.4]} 3. h4 {[%clk 0:03:03.6]} 3... Nxg5 {[%clk
0:02:59.4]} 4. hxg5 {[%clk 0:03:05.5]} 4... g6 {[%clk 0:03:00.7]} 5. Nf3 {[%clk
0:03:06.3]} 5... Bg7 {[%clk 0:03:02.1]} 6. e3 {[%clk 0:02:58.2]} 6... c5 {[%clk
0:03:01.3]} 7. c3 {[%clk 0:02:58.6]} 7... O-O {[%clk 0:03:00.1]} 8. Nbd2 {[%clk
0:02:35.7]} 8... Nc6 {[%clk 0:02:59.9]} 9. d5 {[%clk 0:02:30.2]} 9... Ne5 {[%clk
0:02:55.8]} 10. Nxe5 {[%clk 0:02:30.5]} 10... Bxe5 {[%clk 0:02:57.7]} 11. Qg4
{[%clk 0:02:15.6]} 11... f6 {[%clk 0:02:46.8]} 12. f4 {[%clk 0:02:08.2]} 12...
fxg5 {[%clk 0:02:17]} 13. fxe5 {[%clk 0:02:01]} 13... e6 {[%clk 0:02:17]} 14.
dxe6 {[%clk 0:01:50.6]} 14... dxe6 {[%clk 0:02:18.9]} 15. O-O-O {[%clk
0:01:45.2]} 15... Qc7 {[%clk 0:02:15.8]} 16. Nf3 {[%clk 0:01:18.6]} 16... a6
{[%clk 0:02:07.9]} 17. Qxg5 {[%clk 0:01:08.1]} 17... Rf5 {[%clk 0:02:06.3]} 18.
Rd8+ {[%clk 0:01:06.2]} 18... Kg7 {[%clk 0:02:00.7]} 19. Qh6+ {[%clk 0:00:55.1]}
19... Kf7 {[%clk 0:02:01.1]} 20. Qxh7# {[%clk 0:00:56.1]} 1-0

[Event "*** Titled Tuesday 3|2 Blitz"]
[Site "Chess.com"]
[Date "2017.03.07"]
[Round "11"]
[White "IMcoach"]
[Black "manubibi"]
[Result "0-1"]
[WhiteElo "2330"]
[BlackElo "2403"]
[TimeControl "180+2"]
[EndTime "15:34:50 PST"]
[Termination "manubibi won by checkmate"]

1. c4 {[%clk 0:02:59.9]} 1... Nf6 {[%clk 0:03:00.7]} 2. Nc3 {[%clk 0:03:00.9]}
2... g6 {[%clk 0:03:02.1]} 3. e4 {[%clk 0:03:01.7]} 3... d6 {[%clk 0:03:03.3]}
4. d4 {[%clk 0:03:02.9]} 4... Bg7 {[%clk 0:03:04.9]} 5. f3 {[%clk 0:03:04.4]}
5... O-O {[%clk 0:03:06.5]} 6. Bg5 {[%clk 0:03:05.4]} 6... c5 {[%clk 0:03:07.5]}
7. d5 {[%clk 0:03:06.4]} 7... e6 {[%clk 0:02:55.8]} 8. Qd2 {[%clk 0:03:07]} 8...
exd5 {[%clk 0:02:56.7]} 9. cxd5 {[%clk 0:03:08.9]} 9... a6 {[%clk 0:02:58]} 10.
a4 {[%clk 0:03:09.4]} 10... Re8 {[%clk 0:02:59]} 11. Nge2 {[%clk 0:03:05.9]}
11... Nbd7 {[%clk 0:03:00.5]} 12. Nc1 {[%clk 0:03:06.6]} 12... h6 {[%clk
0:02:55.8]} 13. Be3 {[%clk 0:03:06.2]} 13... h5 {[%clk 0:02:53.9]} 14. Be2
{[%clk 0:03:06.1]} 14... Nh7 {[%clk 0:02:54.3]} 15. O-O {[%clk 0:03:03.6]} 15...
f5 {[%clk 0:02:55.4]} 16. Rb1 {[%clk 0:03:01.3]} 16... Ne5 {[%clk 0:02:56.3]}
17. b4 {[%clk 0:02:57]} 17... b6 {[%clk 0:02:45.8]} 18. N1a2 {[%clk 0:02:42.3]}
18... Bd7 {[%clk 0:02:44.6]} 19. a5 {[%clk 0:02:34]} 19... cxb4 {[%clk
0:02:41.8]} 20. Nxb4 {[%clk 0:02:32.5]} 20... bxa5 {[%clk 0:02:42.8]} 21. Nc6
{[%clk 0:02:13]} 21... Nxc6 {[%clk 0:02:38.5]} 22. dxc6 {[%clk 0:02:14.9]} 22...
Bxc6 {[%clk 0:02:40.2]} 23. exf5 {[%clk 0:02:08.2]} 23... gxf5 {[%clk
0:02:33.2]} 24. Nd5 {[%clk 0:01:56.7]} 24... Bxd5 {[%clk 0:02:24.1]} 25. Qxd5+
{[%clk 0:01:57.3]} 25... Kh8 {[%clk 0:02:26]} 26. Bd4 {[%clk 0:01:41.7]} 26...
Rxe2 {[%clk 0:02:24.8]} 27. Bxg7+ {[%clk 0:01:33.4]} 27... Kxg7 {[%clk
0:02:26.7]} 28. Rb7+ {[%clk 0:01:32.9]} 28... Kh6 {[%clk 0:02:15.1]} 29. Qxf5
{[%clk 0:00:52.9]} 29... Qg8 {[%clk 0:02:14.1]} 30. Rd1 {[%clk 0:00:43.5]} 30...
Qxg2# {[%clk 0:02:12]} 0-1

[Event "*** Titled Tuesday 3|2 Blitz"]
[Site "Chess.com"]
[Date "2017.03.07"]
[Round "11"]
[White "Hikaru"]
[Black "platy3"]
[Result "1-0"]
[WhiteElo "2918"]
[BlackElo "2611"]
[TimeControl "180+2"]
[EndTime "15:35:45 PST"]
[Termination "Hikaru won by resignation"]

1. b3 {[%clk 0:03:02]} 1... Nf6 {[%clk 0:03:00.3]} 2. Bb2 {[%clk 0:03:03.7]}
2... c5 {[%clk 0:03:01]} 3. Nf3 {[%clk 0:03:04.3]} 3... Nc6 {[%clk 0:03:02.3]}
4. e3 {[%clk 0:03:05.7]} 4... g6 {[%clk 0:03:03.3]} 5. d4 {[%clk 0:03:06.3]}
5... cxd4 {[%clk 0:03:04.1]} 6. Nxd4 {[%clk 0:03:08.2]} 6... Bg7 {[%clk
0:03:04.8]} 7. Nxc6 {[%clk 0:03:09.4]} 7... bxc6 {[%clk 0:03:05.6]} 8. Be2
{[%clk 0:03:10.9]} 8... O-O {[%clk 0:03:07.1]} 9. O-O {[%clk 0:03:12.5]} 9... a5
{[%clk 0:03:08.4]} 10. c4 {[%clk 0:03:09.2]} 10... a4 {[%clk 0:03:09.6]} 11. Bf3
{[%clk 0:03:07.6]} 11... Qb6 {[%clk 0:03:07.3]} 12. Bd4 {[%clk 0:03:06.9]} 12...
Qa5 {[%clk 0:02:59.7]} 13. Bc3 {[%clk 0:03:01.4]} 13... Qb6 {[%clk 0:02:57.8]}
14. Nd2 {[%clk 0:03:00.7]} 14... d6 {[%clk 0:02:53.8]} 15. c5 {[%clk 0:02:52.1]}
15... Qxc5 {[%clk 0:02:49.7]} 16. Rc1 {[%clk 0:02:52.9]} 16... Qa7 {[%clk
0:02:19.2]} 17. Bxc6 {[%clk 0:02:43.9]} 17... Bb7 {[%clk 0:02:20.5]} 18. Bxb7
{[%clk 0:02:43.1]} 18... Qxb7 {[%clk 0:02:21.3]} 19. bxa4 {[%clk 0:02:45]} 19...
Rfc8 {[%clk 0:02:18.2]} 20. a5 {[%clk 0:02:45.8]} 20... Qb5 {[%clk 0:01:54.8]}
21. Qb3 {[%clk 0:02:41.3]} 21... Qxb3 {[%clk 0:01:44.1]} 22. axb3 {[%clk
0:02:36]} 22... Nd5 {[%clk 0:01:42]} 23. Bxg7 {[%clk 0:02:36.9]} 23... Kxg7
{[%clk 0:01:43.9]} 24. Rxc8 {[%clk 0:02:28.1]} 24... Rxc8 {[%clk 0:01:45.8]} 25.
Ra1 {[%clk 0:02:26.8]} 25... Nb4 {[%clk 0:01:40]} 26. Nc4 {[%clk 0:02:26.8]}
26... d5 {[%clk 0:01:40.1]} 27. Nb6 {[%clk 0:02:27.2]} 27... Rc6 {[%clk
0:01:39.8]} 28. h4 {[%clk 0:02:24.2]} 28... Rc7 {[%clk 0:01:33]} 29. Ra4 {[%clk
0:02:22]} 29... Nc6 {[%clk 0:01:31.6]} 30. Nxd5 {[%clk 0:02:19.1]} 30... Rd7
{[%clk 0:01:33]} 31. Nf4 {[%clk 0:02:09.3]} 31... e5 {[%clk 0:01:20.7]} 32. Nh3
{[%clk 0:02:07.2]} 32... Rd1+ {[%clk 0:01:11.6]} 33. Kh2 {[%clk 0:02:07.8]}
33... Rb1 {[%clk 0:01:12.1]} 34. a6 {[%clk 0:02:05.5]} 34... Na7 {[%clk
0:01:12.9]} 35. Rb4 {[%clk 0:02:06.6]} 35... Ra1 {[%clk 0:01:13.6]} 36. Rb7
{[%clk 0:02:07.4]} 36... Nc6 {[%clk 0:01:12.8]} 37. Ng5 {[%clk 0:02:07.8]} 37...
Nd8 {[%clk 0:01:14]} 38. Rd7 {[%clk 0:02:08.1]} 38... h6 {[%clk 0:01:14.9]} 39.
Rxd8 {[%clk 0:01:59.7]} 39... hxg5 {[%clk 0:01:16.1]} 40. Rd6 {[%clk 0:01:47.1]}
40... gxh4 {[%clk 0:01:00.3]} 41. b4 {[%clk 0:01:47.5]} 1-0

[Event "*** Titled Tuesday 3|2 Blitz"]
[Site "Chess.com"]
[Date "2017.03.07"]
[Round "11"]
[White "Tash_Boy"]
[Black "politeplayer"]
[Result "1-0"]
[WhiteElo "2490"]
[BlackElo "2053"]
[TimeControl "180+2"]
[EndTime "15:35:45 PST"]
[Termination "Tash_Boy won by resignation"]

1. e4 {[%clk 0:03:02]} 1... c5 {[%clk 0:02:59]} 2. Nf3 {[%clk 0:03:02.3]} 2...
e6 {[%clk 0:02:57.8]} 3. d4 {[%clk 0:03:02.7]} 3... cxd4 {[%clk 0:02:58.5]} 4.
Nxd4 {[%clk 0:03:04]} 4... Nf6 {[%clk 0:02:59.2]} 5. Nc3 {[%clk 0:03:03.5]} 5...
Bb4 {[%clk 0:02:56.8]} 6. e5 {[%clk 0:03:03.7]} 6... Nd5 {[%clk 0:02:56.8]} 7.
Qg4 {[%clk 0:03:03.9]} 7... O-O {[%clk 0:02:40.5]} 8. Bh6 {[%clk 0:03:03.4]}
8... g6 {[%clk 0:02:40.9]} 9. Bxf8 {[%clk 0:03:02.6]} 9... Qxf8 {[%clk
0:02:39.1]} 10. Ne2 {[%clk 0:03:04.2]} 10... Nc6 {[%clk 0:02:31.1]} 11. Qg3
{[%clk 0:03:05.1]} 11... Qc5 {[%clk 0:02:02.3]} 12. O-O-O {[%clk 0:02:50.1]}
12... Nxc3 {[%clk 0:01:54]} 13. Nxc3 {[%clk 0:02:49.9]} 13... Bxc3 {[%clk
0:01:53.1]} 14. Qxc3 {[%clk 0:02:50]} 14... Qxc3 {[%clk 0:01:46.4]} 15. bxc3
{[%clk 0:02:51.9]} 15... Nxe5 {[%clk 0:01:46.2]} 16. Rd6 {[%clk 0:02:52.8]}
16... Kf8 {[%clk 0:01:30.7]} 17. Be2 {[%clk 0:02:52.8]} 17... Ke7 {[%clk
0:01:30.3]} 18. Rhd1 {[%clk 0:02:52.8]} 18... f6 {[%clk 0:01:27.9]} 19. c4
{[%clk 0:02:50.4]} 19... Nf7 {[%clk 0:01:24.2]} 20. R6d2 {[%clk 0:02:49.4]}
20... b6 {[%clk 0:01:16.1]} 21. f4 {[%clk 0:02:43.5]} 21... d6 {[%clk
0:01:11.7]} 22. Bf3 {[%clk 0:02:44.5]} 22... Rb8 {[%clk 0:01:11]} 23. Rd3 {[%clk
0:02:31.1]} 23... Ba6 {[%clk 0:01:06.6]} 24. Ra3 {[%clk 0:02:31]} 24... Bxc4
{[%clk 0:01:01.9]} 25. Rxa7+ {[%clk 0:02:31.8]} 25... Kf8 {[%clk 0:01:02.5]} 26.
a4 {[%clk 0:02:31.2]} 26... d5 {[%clk 0:00:45.3]} 27. Kd2 {[%clk 0:02:29.5]}
27... Kg8 {[%clk 0:00:40.3]} 28. Rb1 {[%clk 0:02:30.9]} 28... Nd6 {[%clk
0:00:32.4]} 29. a5 {[%clk 0:02:31.1]} 29... b5 {[%clk 0:00:17.5]} 30. a6 {[%clk
0:02:32]} 30... b4 {[%clk 0:00:17.8]} 31. Ra1 {[%clk 0:02:29]} 31... Bb5 {[%clk
0:00:15.9]} 32. Re7 {[%clk 0:02:22.6]} 32... Nc4+ {[%clk 0:00:13.8]} 33. Kc1
{[%clk 0:02:23]} 33... Ne3 {[%clk 0:00:07.8]} 34. a7 {[%clk 0:02:24]} 34... Ra8
{[%clk 0:00:06.6]} 35. Rb7 {[%clk 0:02:25.4]} 35... b3 {[%clk 0:00:05.5]} 36.
Rb8+ {[%clk 0:02:24.7]} 1-0

[Event "*** Titled Tuesday 3|2 Blitz"]
[Site "Chess.com"]
[Date "2017.03.07"]
[Round "11"]
[White "Cayse"]
[Black "Anton_Demchenko"]
[Result "0-1"]
[WhiteElo "2583"]
[BlackElo "2634"]
[TimeControl "180+2"]
[EndTime "15:36:02 PST"]
[Termination "Anton_Demchenko won by resignation"]

1. e4 {[%clk 0:03:02]} 1... e5 {[%clk 0:03:00.6]} 2. Nf3 {[%clk 0:03:02.5]} 2...
Nc6 {[%clk 0:03:02]} 3. Bc4 {[%clk 0:03:03.3]} 3... Nf6 {[%clk 0:03:01.7]} 4.
Ng5 {[%clk 0:03:03.6]} 4... d5 {[%clk 0:03:02.7]} 5. exd5 {[%clk 0:03:04.6]}
5... Na5 {[%clk 0:03:04.2]} 6. Bb5+ {[%clk 0:03:05.7]} 6... c6 {[%clk
0:03:05.8]} 7. dxc6 {[%clk 0:03:06.8]} 7... bxc6 {[%clk 0:03:07.7]} 8. Bd3
{[%clk 0:03:07.8]} 8... Nd5 {[%clk 0:03:02.2]} 9. Nf3 {[%clk 0:03:08.1]} 9...
Bd6 {[%clk 0:03:02.7]} 10. O-O {[%clk 0:03:08.3]} 10... O-O {[%clk 0:03:04.2]}
11. Re1 {[%clk 0:03:08.9]} 11... f5 {[%clk 0:03:05.3]} 12. Nxe5 {[%clk
0:03:03.3]} 12... Qf6 {[%clk 0:03:06.1]} 13. Nf3 {[%clk 0:02:58.2]} 13... g5
{[%clk 0:03:02.4]} 14. g3 {[%clk 0:02:31.3]} 14... f4 {[%clk 0:02:30.3]} 15. Rf1
{[%clk 0:02:13]} 15... Bh3 {[%clk 0:02:19.7]} 16. Nc3 {[%clk 0:02:04.3]} 16...
Nxc3 {[%clk 0:01:58.6]} 17. dxc3 {[%clk 0:02:04.2]} 17... Bxf1 {[%clk
0:01:59.4]} 18. Qxf1 {[%clk 0:02:05]} 18... fxg3 {[%clk 0:01:59.2]} 19. Nxg5
{[%clk 0:02:05.5]} 19... gxf2+ {[%clk 0:01:29.2]} 20. Kh1 {[%clk 0:02:02.9]}
20... Qe5 {[%clk 0:01:14.3]} 21. Bf4 {[%clk 0:01:08.2]} 21... Rxf4 {[%clk
0:00:46.5]} 22. Qg2 {[%clk 0:01:09]} 22... Kh8 {[%clk 0:00:36.8]} 23. Nh3 {[%clk
0:01:04.3]} 23... Rg8 {[%clk 0:00:29.3]} 0-1